[Event "HUN-ch U8-U18 2019"]
[Site "Balatonlelle"]
[Date "2019.06.21"]
[Round "1.19"]
[White "Pesti, Mate"]
[Black "Horvath, Balazs"]
[Result "0-1"]
[ECO "C77"]
[WhiteElo "1925"]
[BlackElo "2139"]
[Annotator "NA"]
[PlyCount "138"]
[EventDate "2019.06.21"]
[EventType "swiss"]
[EventCountry "HUN"]
[SourceTitle "playchess.com"]
[Source "ChessBase"]
[SourceQuality "1"]
[TimeControl "40/5400+30:1800+30"]

1. e4 {[%emt 0:00:04]} e5 {[%emt 0:00:30]} 2. Nf3 {[%emt 0:00:06]} Nc6 {[%emt 0:00:05]} 3. Bb5 {[%emt 0:00:06]} a6 {[%emt 0:00:05]} 4. Ba4 {[%emt 0:00:04]} Nf6 {[%emt 0:00:13]} 5. d4 {[%emt 0:00:12]} exd4 {[%emt 0:03:04]} 6. O-O {[%emt 0:07:40]} b5 {[%emt 0:06:38]} 7. e5 {[%emt 0:09:23]} Ne4 {[%emt 0:19:16]} 8. Bb3 {[%emt 0:02:50]} Nc5 {[%emt 0:05:55]} 9. Nxd4 {[%emt 0:10:08]} Nxd4 {[%emt 0:16:33]} 10. Qxd4 {[%emt 0:01:16]} Nxb3 {[%emt 0:00:53]} 11. axb3 {[%emt 0:00:24]} Bb7 {[%emt 0:00:21]} 12. Nc3 {[%emt 0:05:48]} c5 {[%emt 0:04:02]} 13. Qd3 {[%emt 0:06:20]} Be7 {[%emt 0:02:55]} 14. Qg3 {[%emt 0:03:12]} Rg8 {[%emt 0:09:42]} 15. Qd3 {[%emt 0:10:15]} g6 {[%emt 0:05:02]} 16. Re1 {[%emt 0:08:53]} Qb6 {[%emt 0:08:12]} 17. Nd5 {[%emt 0:07:52]} Bxd5 {[%emt 0:02:10]} 18. Qxd5 {[%emt 0:00:07]} Ra7 {[%emt 0:03:41]} 19. Be3 {[%emt 0:01:51]} b4 {[%emt 0:01:53]} 20. c4 {[%emt 0:09:06]} g5 {[%emt 0:04:25]} 21. f4 {[%emt 0:06:25]} gxf4 {[%emt 0:00:23]} 22. Bxf4 {[%emt 0:00:07]} Rg6 {[%emt 0:01:13]} 23. Rf1 {[%emt 0:01:35]} Qe6 {[%emt 0:00:45]} 24. Be3 {[%emt 0:01:03]} d6 {[%emt 0:01:50]} 25. Qxe6 {[%emt 0:04:19]} Rxe6 {[%emt 0:00:10]} 26. exd6 {[%emt 0:02:19]} Rxe3 {[%emt 0:00:26]} 27. dxe7 {[%emt 0:00:05]} Rxb3 {[%emt 0:00:28]} 28. Rf2 {[%emt 0:00:48]} a5 {[%emt 0:00:41]} 29. Ra4 {[%emt 0:00:50]} Kxe7 {[%emt 0:00:35]} 30. h3 {[%emt 0:00:41]} Kd6 {[%emt 0:00:16]} 31. Rd2+ {[%emt 0:00:47]} Ke6 {[%emt 0:01:49]} 32. Kh2 {[%emt 0:00:40]} Ra6 {[%emt 0:01:03]} 33. Rd5 {[%emt 0:00:39]} Rxb2 {[%emt 0:00:25]} 34. Rxc5 {[%emt 0:00:07]} Rc2 {[%emt 0:00:25]} 35. Rc8 {[%emt 0:00:54]} b3 {[%emt 0:00:45]} 36. Rb8 {[%emt 0:00:22]} b2 {[%emt 0:00:06]} 37. c5 {[%emt 0:00:32]} Kd5 {[%emt 0:00:22]} 38. c6 {[%emt 0:00:29]} Kxc6 {[%emt 0:00:34]} 39. Rf4 {[%emt 0:00:16]} Rd2 {[%emt 0:00:59]} 40. Rxf7 {[%emt 0:00:00]} a4 {[%emt 0:00:00]} 41. Rf6+ {[%emt 0:02:44]} Kc7 {[%emt 0:04:34]} 42. Rxb2 {[%emt 0:00:55]} Rxf6 {[%emt 0:07:19]} 43. Rxd2 {[%emt 0:00:33]} a3 {[%emt 0:01:12]} 44. Kg3 {[%emt 0:04:46]} Ra6 {[%emt 0:00:40]} 45. Ra2 {[%emt 0:00:07]} Kb6 {[%emt 0:00:06]} 46. Kf4 {[%emt 0:00:56]} Kc5 {[%emt 0:00:27]} 47. g4 {[%emt 0:01:09]} Kb4 {[%emt 0:00:08]} 48. h4 {[%emt 0:00:57]} Kb3 {[%emt 0:00:06]} 49. Ra1 {[%emt 0:04:43]} Kb2 {[%emt 0:01:30]} 50. Re1 {[%emt 0:01:56]} a2 {[%emt 0:01:48]} 51. h5 {[%emt 0:02:56]} h6 {[%emt 0:02:13]} 52. g5 {[%emt 0:01:07]} Ra4+ {[%emt 0:15:05]} 53. Kf5 {[%emt 0:00:32]} Ra5+ {[%emt 0:00:23]} 54. Kg6 {[%emt 0:00:16]} Ra6+ {[%emt 0:00:20]} 55. Kf5 {[%emt 0:00:25]} Ra5+ {[%emt 0:00:20]} 56. Kg6 {[%emt 0:00:07]} hxg5 {[%emt 0:00:26]} 57. h6 {[%emt 0:00:21]} g4 {[%emt 0:00:21]} 58. h7 {[%emt 0:00:47]} Ra6+ {[%emt 0:00:49]} 59. Kg5 {[%emt 0:03:58]} Ra8 {[%emt 0:01:00]} 60. Re2+ {[%emt 0:01:10]} Kb3 {[%emt 0:00:26]} 61. Re3+ {[%emt 0:01:37]} Kc4 {[%emt 0:00:48]} 62. Re1 {[%emt 0:00:27]} g3 {[%emt 0:00:26]} 63. Kf4 {[%emt 0:09:48]} g2 {[%emt 0:00:51]} 64. Ra1 {[%emt 0:00:29]} Kb3 {[%emt 0:00:36]} 65. Rg1 {[%emt 0:00:32]} a1=Q {[%emt 0:00:33]} 66. Rxa1 {[%emt 0:00:05]} Rxa1 {[%emt 0:00:06]} 67. h8=Q {[%emt 0:00:09]} g1=Q {[%emt 0:00:07]} 68. Qh3+ {[%emt 0:00:58]} Kb4 {[%emt 0:00:13]} 69. Qd3 {[%emt 0:00:46]} Qf1+ {[%emt 0:00:10]} 0-1

[Event "HUN-ch U8-U18 2019"]
[Site "Balatonlelle"]
[Date "2019.06.21"]
[Round "1.19"]
[White "Gyurika, Roland"]
[Black "Tran, David"]
[Result "0-1"]
[ECO "C54"]
[WhiteElo "1414"]
[BlackElo "2078"]
[Annotator "NA"]
[PlyCount "54"]
[EventDate "2019.06.21"]
[EventType "swiss"]
[EventCountry "HUN"]
[SourceTitle "playchess.com"]
[Source "ChessBase"]
[SourceQuality "1"]
[TimeControl "40/5400+30:1800+30"]

1. e4 {[%emt 0:00:21]} e5 {[%emt 0:00:24]} 2. Nf3 {[%emt 0:01:10]} Nc6 {[%emt 0:00:05]} 3. d4 {[%emt 0:01:39]} exd4 {[%emt 0:00:11]} 4. Bc4 {[%emt 0:00:12]} Bc5 {[%emt 0:00:13]} 5. c3 {[%emt 0:00:16]} Nf6 {[%emt 0:00:05]} 6. cxd4 {[%emt 0:00:54]} Bb4+ {[%emt 0:00:08]} 7. Bd2 {[%emt 0:00:18]} Bxd2+ {[%emt 0:00:05]} 8. Nbxd2 {[%emt 0:00:16]} d5 {[%emt 0:00:48]} 9. exd5 {[%emt 0:03:20]} Nxd5 {[%emt 0:00:11]} 10. O-O {[%emt 0:00:19]} O-O {[%emt 0:00:28]} 11. Re1 {[%emt 0:03:08]} Nf6 {[%emt 0:05:29]} 12. Ne4 {[%emt 0:01:40]} Bg4 {[%emt 0:05:03]} 13. Nxf6+ {[%emt 0:17:26]} Qxf6 {[%emt 0:00:24]} 14. Be2 {[%emt 0:00:15]} Bxf3 {[%emt 0:01:21]} 15. Bxf3 {[%emt 0:00:07]} Nxd4 {[%emt 0:01:29]} 16. Bxb7 {[%emt 0:00:10]} Rab8 {[%emt 0:00:24]} 17. Re4 {[%emt 0:17:56]} Rfd8 {[%emt 0:02:54]} 18. Ba6 {[%emt 0:05:03]} Rxb2 {[%emt 0:00:30]} 19. Qf1 {[%emt 0:03:00]} Qg6 {[%emt 0:07:17]} 20. Bd3 {[%emt 0:00:35]} f5 {[%emt 0:05:09]} 21. Re3 {[%emt 0:01:24]} Qg5 {[%emt 0:07:29]} 22. Qe1 {[%emt 0:01:13]} h6 {[%emt 0:04:33]} 23. Re8+ {[%emt 0:00:46]} Kh7 {[%emt 0:02:07]} 24. Re3 {[%emt 0:03:56]} Kg8 {[%emt 0:01:37]} 25. Rc1 {[%emt 0:02:26]} Qf4 {[%emt 0:04:02]} 26. Rc4 {[%emt 0:05:10]} Kh7 {[%emt 0:08:05]} 27. Qc1 {[%emt 0:11:05]} Qxf2+ {[%emt 0:00:07]} 0-1

[Event "HUN-ch U8-U18 2019"]
[Site "Balatonlelle"]
[Date "2019.06.21"]
[Round "1.20"]
[White "Acs, Marton"]
[Black "Birovecz, Ben Jordan"]
[Result "1-0"]
[ECO "D34"]
[WhiteElo "2138"]
[BlackElo "1912"]
[Annotator "NA"]
[PlyCount "85"]
[EventDate "2019.06.21"]
[EventType "swiss"]
[EventCountry "HUN"]
[SourceTitle "playchess.com"]
[Source "ChessBase"]
[SourceQuality "1"]
[TimeControl "40/5400+30:1800+30"]

1. Nf3 {[%emt 0:00:06]} d5 {[%emt 0:00:28]} 2. g3 {[%emt 0:00:18]} c5 {[%emt 0:01:12]} 3. Bg2 {[%emt 0:00:17]} Nc6 {[%emt 0:00:09]} 4. d4 {[%emt 0:00:06]} Nf6 {[%emt 0:01:25]} 5. O-O {[%emt 0:00:12]} e6 {[%emt 0:01:25]} 6. c4 {[%emt 0:00:06]} Be7 {[%emt 0:00:29]} 7. cxd5 {[%emt 0:00:13]} exd5 {[%emt 0:00:50]} 8. dxc5 {[%emt 0:00:21]} Bxc5 {[%emt 0:00:07]} 9. Nc3 {[%emt 0:00:09]} O-O {[%emt 0:00:18]} 10. Na4 {[%emt 0:01:11]} Be7 {[%emt 0:00:32]} 11. Be3 {[%emt 0:01:03]} Ne4 {[%emt 0:01:45]} 12. Rc1 {[%emt 0:03:48]} Re8 {[%emt 0:26:42]} 13. Nd4 {[%emt 0:15:02]} Nxd4 {[%emt 0:11:52]} 14. Bxd4 {[%emt 0:01:08]} Bd7 {[%emt 0:01:07]} 15. Nc3 {[%emt 0:26:41]} Bc6 {[%emt 0:03:14]} 16. e3 {[%emt 0:06:19]} Qa5 {[%emt 0:06:47]} 17. Qg4 {[%emt 0:06:06]} g6 {[%emt 0:10:48]} 18. a3 {[%emt 0:11:17]} h5 {[%emt 0:25:18]} 19. Qe2 {[%emt 0:01:04]} Rad8 {[%emt 0:01:45]} 20. b4 {[%emt 0:03:48]} Nxc3 {[%emt 0:00:21]} 21. Rxc3 {[%emt 0:00:16]} Qb5 {[%emt 0:02:47]} 22. Qxb5 {[%emt 0:13:09]} Bxb5 {[%emt 0:00:01]} 23. Rfc1 {[%emt 0:00:18]} a6 {[%emt 0:01:30]} 24. Bf1 {[%emt 0:03:20]} Bxf1 {[%emt 0:00:34]} 25. Kxf1 {[%emt 0:00:02]} Bd6 {[%emt 0:00:32]} 26. Bb6 {[%emt 0:02:21]} Rd7 {[%emt 0:00:25]} 27. Rd3 {[%emt 0:00:50]} Be5 {[%emt 0:00:30]} 28. Rcd1 {[%emt 0:00:22]} Re6 {[%emt 0:00:29]} 29. Rxd5 {[%emt 0:02:42]} Rxd5 {[%emt 0:00:32]} 30. Rxd5 {[%emt 0:00:02]} Bb2 {[%emt 0:00:31]} 31. Rd8+ {[%emt 0:01:20]} Kg7 {[%emt 0:00:28]} 32. Bd4+ {[%emt 0:00:20]} Bxd4 {[%emt 0:00:05]} 33. exd4 {[%emt 0:00:56]} Kf6 {[%emt 0:00:52]} 34. Rd7 {[%emt 0:00:46]} Rb6 {[%emt 0:00:29]} 35. Ke2 {[%emt 0:00:27]} Ke6 {[%emt 0:00:32]} 36. Rc7 {[%emt 0:00:02]} Rb5 {[%emt 0:00:20]} 37. Kd3 Rb6 {[%emt 0:00:47]} 38. Kc4 {[%emt 0:01:09]} Rb5 {[%emt 0:00:26]} 39. f4 {[%emt 0:00:59]} f6 {[%emt 0:00:33]} 40. a4 {[%emt 0:00:00]} Rb6 {[%emt 0:00:00]} 41. Kc5 {[%emt 0:00:35]} Rd6 {[%emt 0:01:08]} 42. Rxb7 {[%emt 0:00:14]} Rd5+ {[%emt 0:00:28]} 43. Kc4 {[%emt 0:00:21]} 1-0

[Event "HUN-ch U8-U18 2019"]
[Site "Balatonlelle"]
[Date "2019.06.21"]
[Round "1.20"]
[White "Palczert, Matyas"]
[Black "Gergely, Daniel"]
[Result "1-0"]
[ECO "B31"]
[WhiteElo "2007"]
[BlackElo "1427"]
[Annotator "NA"]
[PlyCount "73"]
[EventDate "2019.06.21"]
[EventType "swiss"]
[EventCountry "HUN"]
[SourceTitle "playchess.com"]
[Source "ChessBase"]
[SourceQuality "1"]
[TimeControl "40/5400+30:1800+30"]

1. e4 {[%emt 0:00:04]} c5 {[%emt 0:00:12]} 2. Nf3 {[%emt 0:00:10]} Nc6 {[%emt 0:00:12]} 3. Bb5 {[%emt 0:00:11]} g6 {[%emt 0:00:35]} 4. Bxc6 {[%emt 0:03:14]} bxc6 {[%emt 0:00:59]} 5. O-O {[%emt 0:00:54]} Bg7 {[%emt 0:00:11]} 6. c3 {[%emt 0:00:19]} d5 {[%emt 0:00:06]} 7. exd5 {[%emt 0:01:06]} cxd5 {[%emt 0:00:35]} 8. d4 {[%emt 0:01:29]} cxd4 {[%emt 0:01:26]} 9. cxd4 {[%emt 0:00:11]} Nf6 {[%emt 0:00:35]} 10. Nc3 {[%emt 0:01:12]} O-O {[%emt 0:01:34]} 11. Ne5 {[%emt 0:01:27]} Ba6 {[%emt 0:07:31]} 12. Re1 {[%emt 0:00:36]} Re8 {[%emt 0:00:34]} 13. Bg5 {[%emt 0:05:56]} Rc8 {[%emt 0:04:29]} 14. Bxf6 {[%emt 0:04:20]} exf6 {[%emt 0:01:14]} 15. Nf3 {[%emt 0:00:35]} Rxe1+ {[%emt 0:01:16]} 16. Qxe1 {[%emt 0:00:30]} Bb7 {[%emt 0:01:30]} 17. Nd2 {[%emt 0:04:17]} Qb6 {[%emt 0:02:15]} 18. Nb3 {[%emt 0:00:41]} Bc6 {[%emt 0:03:16]} 19. Qd1 {[%emt 0:06:54]} a5 {[%emt 0:06:18]} 20. Qd2 {[%emt 0:07:01]} Rb8 {[%emt 0:03:55]} 21. Rb1 {[%emt 0:02:27]} a4 {[%emt 0:03:02]} 22. Nc5 {[%emt 0:00:11]} f5 {[%emt 0:00:27]} 23. b4 {[%emt 0:02:03]} axb3 {[%emt 0:00:57]} 24. axb3 {[%emt 0:00:12]} Ra8 {[%emt 0:00:49]} 25. b4 {[%emt 0:00:44]} Ra3 {[%emt 0:02:57]} 26. b5 {[%emt 0:02:40]} Bb7 {[%emt 0:06:46]} 27. h3 {[%emt 0:03:25]} Qa7 {[%emt 0:14:05]} 28. b6 {[%emt 0:02:16]} Qa5 {[%emt 0:04:11]} 29. Nxb7 {[%emt 0:01:23]} Qxc3 {[%emt 0:00:29]} 30. Qxc3 {[%emt 0:00:07]} Rxc3 {[%emt 0:00:06]} 31. Nd6 {[%emt 0:00:56]} Bf8 {[%emt 0:01:20]} 32. Ne8 {[%emt 0:03:23]} Rc8 {[%emt 0:02:11]} 33. Nf6+ {[%emt 0:00:14]} Kg7 {[%emt 0:00:24]} 34. b7 {[%emt 0:00:18]} Rb8 {[%emt 0:00:43]} 35. Nd7 {[%emt 0:00:18]} Bd6 {[%emt 0:00:18]} 36. Nxb8 {[%emt 0:00:07]} Bxb8 {[%emt 0:00:05]} 37. Ra1 {[%emt 0:00:12]} 1-0

[Event "HUN-ch U8-U18 2019"]
[Site "Balatonlelle"]
[Date "2019.06.21"]
[Round "1.21"]
[White "Hatala, Csaba Laszlo"]
[Black "Pogany, Zsombor"]
[Result "0-1"]
[ECO "B03"]
[WhiteElo "1958"]
[BlackElo "2121"]
[Annotator "NA"]
[PlyCount "64"]
[EventDate "2019.06.21"]
[EventType "swiss"]
[EventCountry "HUN"]
[SourceTitle "playchess.com"]
[Source "ChessBase"]
[SourceQuality "1"]
[TimeControl "40/5400+30:1800+30"]

1. e4 {[%emt 0:00:04]} Nf6 {[%emt 0:00:07]} 2. e5 {[%emt 0:00:22]} Nd5 {[%emt 0:00:08]} 3. d4 {[%emt 0:00:25]} d6 {[%emt 0:00:05]} 4. exd6 {[%emt 0:00:37]} cxd6 {[%emt 0:00:10]} 5. Nf3 {[%emt 0:00:35]} g6 {[%emt 0:00:20]} 6. c4 {[%emt 0:05:07]} Nb6 {[%emt 0:04:22]} 7. Nc3 {[%emt 0:02:20]} Bg7 {[%emt 0:00:20]} 8. Be3 {[%emt 0:00:51]} O-O {[%emt 0:00:07]} 9. Bd3 {[%emt 0:09:05]} Bg4 {[%emt 0:00:57]} 10. h3 {[%emt 0:00:28]} Bxf3 {[%emt 0:00:10]} 11. Qxf3 {[%emt 0:00:07]} Nc6 {[%emt 0:00:39]} 12. O-O {[%emt 0:12:42]} Qd7 {[%emt 0:13:45]} 13. c5 {[%emt 0:11:25]} dxc5 {[%emt 0:06:48]} 14. dxc5 {[%emt 0:00:17]} Ne5 {[%emt 0:02:02]} 15. Qe2 {[%emt 0:01:51]} Qxd3 {[%emt 0:01:26]} 16. cxb6 {[%emt 0:01:02]} axb6 {[%emt 0:00:31]} 17. Qxd3 {[%emt 0:09:22]} Nxd3 {[%emt 0:00:12]} 18. Rab1 {[%emt 0:05:01]} b5 {[%emt 0:07:31]} 19. a3 {[%emt 0:09:02]} Rfd8 {[%emt 0:08:30]} 20. Nxb5 {[%emt 0:07:09]} Nxb2 {[%emt 0:02:57]} 21. Bd4 {[%emt 0:06:55]} Bxd4 {[%emt 0:10:18]} 22. Nxd4 {[%emt 0:00:06]} Nc4 {[%emt 0:00:13]} 23. Nf3 {[%emt 0:00:51]} Rd7 {[%emt 0:01:29]} 24. Rb4 {[%emt 0:00:55]} Nxa3 {[%emt 0:03:46]} 25. Ra1 {[%emt 0:00:56]} Ra6 {[%emt 0:01:41]} 26. Rb3 {[%emt 0:04:47]} Nc4 {[%emt 0:02:34]} 27. Rc1 {[%emt 0:00:40]} Nd6 {[%emt 0:04:24]} 28. Ne5 {[%emt 0:02:55]} Rd8 {[%emt 0:01:21]} 29. Rc7 {[%emt 0:01:55]} Kf8 {[%emt 0:02:42]} 30. Nc4 {[%emt 0:00:59]} Ra1+ {[%emt 0:02:09]} 31. Kh2 {[%emt 0:00:07]} Rc1 {[%emt 0:00:44]} 32. Rd3 {[%emt 0:02:01]} Rb8 {[%emt 0:02:09]} 0-1

[Event "HUN-ch U8-U18 2019"]
[Site "Balatonlelle"]
[Date "2019.06.21"]
[Round "1.21"]
[White "Szarka, Tibor"]
[Black "Kolimar, Kristof Pal"]
[Result "0-1"]
[ECO "B42"]
[WhiteElo "1379"]
[BlackElo "1979"]
[Annotator "NA"]
[PlyCount "74"]
[EventDate "2019.06.21"]
[EventType "swiss"]
[EventCountry "HUN"]
[SourceTitle "playchess.com"]
[Source "ChessBase"]
[SourceQuality "1"]
[TimeControl "40/5400+30:1800+30"]

1. e4 {[%emt 0:00:06]} c5 {[%emt 0:00:05]} 2. Nf3 {[%emt 0:00:19]} e6 {[%emt 0:00:08]} 3. d4 {[%emt 0:00:14]} cxd4 {[%emt 0:00:08]} 4. Nxd4 {[%emt 0:00:17]} a6 {[%emt 0:00:08]} 5. Bd3 {[%emt 0:00:39]} Qb6 {[%emt 0:00:43]} 6. Nf3 {[%emt 0:01:54]} Qc7 {[%emt 0:00:53]} 7. O-O {[%emt 0:00:55]} d6 {[%emt 0:01:04]} 8. Qe2 {[%emt 0:01:28]} Nf6 {[%emt 0:00:59]} 9. c4 {[%emt 0:02:17]} Nbd7 {[%emt 0:00:09]} 10. b3 {[%emt 0:00:43]} Be7 {[%emt 0:01:49]} 11. Bb2 {[%emt 0:00:46]} O-O {[%emt 0:00:40]} 12. Nc3 {[%emt 0:02:24]} b6 {[%emt 0:01:39]} 13. Rae1 {[%emt 0:04:22]} Bb7 {[%emt 0:01:13]} 14. Nd2 {[%emt 0:03:20]} Rac8 {[%emt 0:07:39]} 15. f4 {[%emt 0:01:43]} Rfd8 {[%emt 0:03:51]} 16. Rf3 {[%emt 0:06:37]} Nc5 {[%emt 0:01:20]} 17. Bb1 {[%emt 0:01:44]} Bf8 {[%emt 0:24:31]} 18. Rh3 {[%emt 0:03:35]} Ncd7 {[%emt 0:09:15]} 19. Nd1 {[%emt 0:04:29]} g6 {[%emt 0:06:17]} 20. Qf2 {[%emt 0:10:50]} Bg7 {[%emt 0:02:26]} 21. f5 {[%emt 0:10:18]} Ng4 {[%emt 0:15:43]} 22. Qe2 {[%emt 0:03:45]} Nge5 {[%emt 0:03:13]} 23. fxe6 {[%emt 0:04:38]} fxe6 {[%emt 0:00:06]} 24. Nf3 {[%emt 0:01:33]} Nxf3+ {[%emt 0:01:52]} 25. Rxf3 {[%emt 0:00:26]} Bxb2 {[%emt 0:01:50]} 26. Qxb2 {[%emt 0:00:13]} Ne5 {[%emt 0:00:04]} 27. Rf4 {[%emt 0:03:45]} b5 {[%emt 0:02:45]} 28. cxb5 {[%emt 0:06:45]} axb5 {[%emt 0:00:05]} 29. Nf2 {[%emt 0:01:37]} Rf8 {[%emt 0:03:36]} 30. Rxf8+ {[%emt 0:00:56]} Rxf8 {[%emt 0:00:05]} 31. Qc1 {[%emt 0:01:28]} Qb6 {[%emt 0:01:31]} 32. Qd2 {[%emt 0:01:34]} b4 {[%emt 0:01:10]} 33. Rf1 {[%emt 0:02:10]} Ba6 {[%emt 0:00:15]} 34. Rc1 {[%emt 0:01:18]} Ng4 {[%emt 0:00:39]} 35. Rc2 {[%emt 0:00:43]} Rxf2 {[%emt 0:00:09]} 36. Qxf2 {[%emt 0:00:42]} Nxf2 {[%emt 0:00:07]} 37. Rxf2 {[%emt 0:00:43]} Qe3 {[%emt 0:00:13]} 0-1

[Event "HUN-ch U8-U18 2019"]
[Site "Balatonlelle"]
[Date "2019.06.21"]
[Round "1.22"]
[White "Varga, Marcell"]
[Black "Monduk, Ferenc"]
[Result "1-0"]
[ECO "A16"]
[WhiteElo "2106"]
[BlackElo "1717"]
[Annotator "NA"]
[PlyCount "59"]
[EventDate "2019.06.21"]
[EventType "swiss"]
[EventCountry "HUN"]
[SourceTitle "playchess.com"]
[Source "ChessBase"]
[SourceQuality "1"]
[TimeControl "40/5400+30:1800+30"]

1. c4 {[%emt 0:00:06]} Nf6 {[%emt 0:00:05]} 2. Nc3 {[%emt 0:00:49]} g6 {[%emt 0:00:06]} 3. g3 {[%emt 0:02:35]} Bg7 {[%emt 0:00:09]} 4. Bg2 {[%emt 0:00:32]} O-O {[%emt 0:00:21]} 5. d4 {[%emt 0:02:45]} d6 {[%emt 0:00:24]} 6. e4 {[%emt 0:03:59]} e5 {[%emt 0:00:26]} 7. d5 {[%emt 0:01:53]} Nbd7 {[%emt 0:00:40]} 8. Nge2 {[%emt 0:01:14]} a5 {[%emt 0:01:47]} 9. O-O {[%emt 0:04:08]} Nc5 {[%emt 0:00:45]} 10. Rb1 {[%emt 0:02:24]} Nh5 {[%emt 0:03:38]} 11. a3 {[%emt 0:05:44]} a4 {[%emt 0:04:03]} 12. Be3 {[%emt 0:00:18]} Bd7 {[%emt 0:01:06]} 13. Nb5 {[%emt 0:04:44]} f5 {[%emt 0:09:11]} 14. Nec3 {[%emt 0:03:04]} f4 {[%emt 0:11:27]} 15. Bxc5 {[%emt 0:01:55]} dxc5 {[%emt 0:01:13]} 16. Nxa4 {[%emt 0:02:00]} fxg3 {[%emt 0:02:29]} 17. hxg3 {[%emt 0:03:36]} Qg5 {[%emt 0:20:45]} 18. Nxc5 {[%emt 0:05:05]} Bg4 {[%emt 0:01:35]} 19. Ne6 {[%emt 0:03:32]} Bxe6 {[%emt 0:04:58]} 20. dxe6 {[%emt 0:00:27]} Rad8 {[%emt 0:00:02]} 21. Qb3 {[%emt 0:04:41]} c5 {[%emt 0:02:29]} 22. Rbd1 {[%emt 0:04:56]} Qe7 {[%emt 0:06:58]} 23. Bh3 {[%emt 0:04:13]} Nf6 {[%emt 0:01:46]} 24. Qe3 {[%emt 0:01:29]} Ne8 {[%emt 0:04:55]} 25. Rxd8 {[%emt 0:03:32]} Qxd8 {[%emt 0:00:02]} 26. Qxc5 {[%emt 0:00:33]} Bf6 {[%emt 0:00:29]} 27. Qd5 {[%emt 0:00:58]} Qe7 {[%emt 0:00:20]} 28. Rd1 {[%emt 0:03:01]} Bg5 {[%emt 0:00:39]} 29. Qxe5 {[%emt 0:02:13]} Bf6 {[%emt 0:00:01]} 30. Rd7 {[%emt 0:00:58]} 1-0

[Event "HUN-ch U8-U18 2019"]
[Site "Balatonlelle"]
[Date "2019.06.21"]
[Round "1.22"]
[White "Bodrogi, Bendeguz"]
[Black "Apro, Barnabas"]
[Result "1-0"]
[ECO "A20"]
[WhiteElo "1925"]
[BlackElo "1361"]
[Annotator "NA"]
[PlyCount "100"]
[EventDate "2019.06.21"]
[EventType "swiss"]
[EventCountry "HUN"]
[SourceTitle "playchess.com"]
[Source "ChessBase"]
[SourceQuality "1"]
[TimeControl "40/5400+30:1800+30"]

1. c4 {[%emt 0:00:08]} e5 {[%emt 0:00:17]} 2. g3 {[%emt 0:00:25]} Nc6 {[%emt 0:01:39]} 3. Bg2 {[%emt 0:00:32]} Nf6 {[%emt 0:01:38]} 4. Nc3 {[%emt 0:01:18]} Bc5 {[%emt 0:00:51]} 5. e3 {[%emt 0:03:18]} a6 {[%emt 0:04:22]} 6. Nge2 {[%emt 0:00:26]} d6 {[%emt 0:01:33]} 7. O-O {[%emt 0:01:00]} h6 {[%emt 0:03:20]} 8. d4 {[%emt 0:01:31]} exd4 {[%emt 0:00:22]} 9. Nxd4 {[%emt 0:00:14]} Ne5 {[%emt 0:06:19]} 10. b3 {[%emt 0:04:19]} O-O {[%emt 0:02:12]} 11. Bb2 {[%emt 0:02:04]} Re8 {[%emt 0:03:50]} 12. Nd5 {[%emt 0:05:13]} Nxd5 {[%emt 0:04:19]} 13. cxd5 {[%emt 0:07:59]} Bd7 14. Qc2 Rc8 {[%emt 0:04:26]} 15. Rac1 {[%emt 0:19:42]} Qf6 {[%emt 0:03:21]} 16. Qe2 {[%emt 0:08:02]} Bxd4 {[%emt 0:13:43]} 17. Bxd4 {[%emt 0:00:33]} Bb5 {[%emt 0:00:19]} 18. Rc4 {[%emt 0:00:30]} Qe7 {[%emt 0:02:41]} 19. Qc2 {[%emt 0:01:49]} Nxc4 {[%emt 0:01:14]} 20. bxc4 {[%emt 0:00:01]} Bd7 {[%emt 0:01:30]} 21. a4 {[%emt 0:04:35]} c5 {[%emt 0:08:50]} 22. Bc3 {[%emt 0:01:13]} b5 {[%emt 0:00:58]} 23. axb5 {[%emt 0:00:27]} axb5 {[%emt 0:00:33]} 24. Qb2 {[%emt 0:00:47]} bxc4 {[%emt 0:02:14]} 25. Bxg7 {[%emt 0:00:37]} Rb8 {[%emt 0:03:18]} 26. Qc3 {[%emt 0:01:13]} Qg5 {[%emt 0:01:24]} 27. Bf6 {[%emt 0:01:08]} Qg4 {[%emt 0:01:39]} 28. e4 {[%emt 0:02:40]} Qe2 {[%emt 0:00:59]} 29. Bh8 {[%emt 0:01:18]} Re5 {[%emt 0:06:13]} 30. Bxe5 {[%emt 0:00:27]} Rb3 {[%emt 0:00:50]} 31. Qa5 {[%emt 0:00:12]} dxe5 {[%emt 0:00:27]} 32. Qd8+ {[%emt 0:00:07]} Kg7 {[%emt 0:00:36]} 33. Qxd7 {[%emt 0:00:42]} c3 {[%emt 0:00:22]} 34. Qe7 {[%emt 0:05:18]} c2 {[%emt 0:01:02]} 35. Qxe5+ {[%emt 0:00:26]} Kg8 {[%emt 0:00:10]} 36. d6 {[%emt 0:00:31]} Qb5 {[%emt 0:01:31]} 37. Qe7 {[%emt 0:08:13]} Rb1 {[%emt 0:01:16]} 38. d7 {[%emt 0:00:21]} Rxf1+ {[%emt 0:01:28]} 39. Bxf1 {[%emt 0:00:10]} Qxd7 {[%emt 0:00:24]} 40. Qxd7 {[%emt 0:00:00]} c1=Q 41. Qd5 {[%emt 0:00:36]} Qa3 {[%emt 0:02:21]} 42. Bc4 {[%emt 0:00:32]} Qa7 {[%emt 0:00:39]} 43. e5 {[%emt 0:00:16]} Kg7 {[%emt 0:00:46]} 44. e6 {[%emt 0:00:10]} fxe6 {[%emt 0:00:57]} 45. Qe5+ {[%emt 0:00:38]} Kh7 {[%emt 0:00:19]} 46. Qxe6 {[%emt 0:00:09]} Qa1+ {[%emt 0:00:29]} 47. Kg2 {[%emt 0:00:10]} Qa8+ {[%emt 0:00:20]} 48. Qd5 {[%emt 0:00:10]} Qf8 {[%emt 0:00:19]} 49. Qf7+ {[%emt 0:00:12]} Qg7 {[%emt 0:00:30]} 50. Qxg7+ {[%emt 0:00:23]} Kxg7 {[%emt 0:00:08]} 1-0

[Event "HUN-ch U8-U18 2019"]
[Site "Balatonlelle"]
[Date "2019.06.21"]
[Round "1.23"]
[White "Kovacs, Judit"]
[Black "Szabo, Andrea Erzsebet"]
[Result "1/2-1/2"]
[ECO "D35"]
[WhiteElo "2025"]
[BlackElo "1582"]
[Annotator "NA"]
[PlyCount "38"]
[EventDate "2019.06.21"]
[EventType "swiss"]
[EventCountry "HUN"]
[SourceTitle "playchess.com"]
[Source "ChessBase"]
[SourceQuality "1"]
[TimeControl "40/5400+30:1800+30"]

1. d4 {[%emt 0:00:04]} d5 {[%emt 0:00:24]} 2. c4 {[%emt 0:00:08]} e6 {[%emt 0:00:16]} 3. Nc3 {[%emt 0:01:18]} Nf6 {[%emt 0:01:30]} 4. cxd5 {[%emt 0:00:10]} Nxd5 {[%emt 0:00:38]} 5. e4 {[%emt 0:01:28]} Nxc3 {[%emt 0:02:58]} 6. bxc3 {[%emt 0:00:06]} c6 {[%emt 0:00:08]} 7. Nf3 {[%emt 0:00:30]} Qa5 {[%emt 0:03:02]} 8. Bd2 {[%emt 0:01:32]} Nd7 {[%emt 0:03:19]} 9. Bc4 {[%emt 0:05:13]} b5 {[%emt 0:11:14]} 10. Bb3 {[%emt 0:09:16]} Bb7 {[%emt 0:04:59]} 11. O-O {[%emt 0:04:16]} Qc7 {[%emt 0:02:35]} 12. d5 {[%emt 0:10:49]} cxd5 {[%emt 0:06:42]} 13. exd5 {[%emt 0:00:09]} e5 {[%emt 0:03:00]} 14. d6 {[%emt 0:03:12]} Qxd6 {[%emt 0:07:48]} 15. Ng5 {[%emt 0:12:41]} Bd5 {[%emt 0:04:46]} 16. Nxf7 {[%emt 0:02:44]} Kxf7 {[%emt 0:00:29]} 17. Qf3+ {[%emt 0:08:56]} Nf6 {[%emt 0:02:08]} 18. Bg5 {[%emt 0:01:27]} Qe6 {[%emt 0:06:57]} 19. Qe2 {[%emt 0:07:46]} a6 {[%emt 0:09:13]} 1/2-1/2